Department Family,Entity,Date Paid,Expense Type,Expenses Area,Supplier Name,Transaction Reference,Total,VAT Registration Number
Department of Health,Imperial College Healthcare NHS Trust,31/08/2012,Acton Housing Association,Housing Deductions,A2dominion Housing Group Ltd,2510707,"169,147.56",Optional requirement only
Department of Health,Imperial College Healthcare NHS Trust,01/08/2012,Clinical Managed Service Contr,Clin & Investigative Sciences,Abbott Laboratories Ltd,2490869,"206,818.76",Optional requirement only
Department of Health,Imperial College Healthcare NHS Trust,14/08/2012,Lab - Reagents/Chemicals,Clin & Investigative Sciences,Abbott Laboratories Ltd,2492440,"274,801.16",Optional requirement only
Department of Health,Imperial College Healthcare NHS Trust,16/08/2012,Clinical Managed Service Contr,Clin & Investigative Sciences,Abbott Laboratories Ltd,2501524,"138,189.98",Optional requirement only
Department of Health,Imperial College Healthcare NHS Trust,16/08/2012,Clinical Managed Service Contr,Clin & Investigative Sciences,Abbott Laboratories Ltd,2501568,"599,787.01",Optional requirement only
Department of Health,Imperial College Healthcare NHS Trust,03/08/2012,Buildings-Additions-Purchased,Capital Summary,Accord Lift Services Ltd,2480665,"38,724.00",Optional requirement only
Department of Health,Imperial College Healthcare NHS Trust,09/08/2012,Medeq Planned Maint Contract,Specialist Services 2,B Braun Avitum Ltd,2497704,"135,120.62",Optional requirement only
Department of Health,Imperial College Healthcare NHS Trust,16/08/2012,Chx Pharmacy Stock,Stock,Baxter Healthcare Ltd,2491420,"51,911.14",Optional requirement only
Department of Health,Imperial College Healthcare NHS Trust,31/08/2012,Dialysers,Specialist Services 2,Baxter Healthcare Ltd,2500594,"46,720.12",Optional requirement only
Department of Health,Imperial College Healthcare NHS Trust,03/08/2012,Lab - Reagents/Chemicals,Clin & Investigative Sciences,Beckman Coulter Uk Ltd,2492691,"72,854.99",Optional requirement only
Department of Health,Imperial College Healthcare NHS Trust,21/08/2012,Jac - Stock,Stock,Bms Pharmaceuticals Ltd (0034),2493788,"80,734.30",Optional requirement only
Department of Health,Imperial College Healthcare NHS Trust,07/08/2012,Jac - Stock,Stock,Boehringer Ingelheim Ltd,2488408,"38,760.00",Optional requirement only
Department of Health,Imperial College Healthcare NHS Trust,21/08/2012,Jac - Stock,Stock,Boehringer Ingelheim Ltd,2493878,"38,760.00",Optional requirement only
Department of Health,Imperial College Healthcare NHS Trust,21/08/2012,Jac - Stock,Stock,Boehringer Ingelheim Ltd,2493881,"38,760.00",Optional requirement only
Department of Health,Imperial College Healthcare NHS Trust,09/08/2012,Defibrillators,Specialist Services 2,Boston Scientific Ltd,2468472,"33,519.43",Optional requirement only
Department of Health,Imperial College Healthcare NHS Trust,31/08/2012,Defibrillators,Specialist Services 2,Boston Scientific Ltd,2505326,"50,279.15",Optional requirement only
Department of Health,Imperial College Healthcare NHS Trust,21/08/2012,Computer Software/License,Information & Comms Technology,Bt Global Services,2503978,"69,472.35",Optional requirement only
Department of Health,Imperial College Healthcare NHS Trust,21/08/2012,Nhs Pay Recharge In: Other,Dir Of Chief Exec,Capgemini Uk Plc,2504556,"65,400.00",Optional requirement only
Department of Health,Imperial College Healthcare NHS Trust,09/08/2012,Consultancy Fees,Finance Directorate,Capsticks Solicitors Llp,2486822,"62,700.00",Optional requirement only
Department of Health,Imperial College Healthcare NHS Trust,31/08/2012,Drugs Other Authorities,Specialist Services 2,Central & North West London,2483543,"30,971.34",Optional requirement only
Department of Health,Imperial College Healthcare NHS Trust,14/08/2012,Srvcsrecd-Foundationtrust,Clin & Investigative Sciences,Chelsea And  Westminster Hospital Nhs,2498779,"91,720.69",Optional requirement only
Department of Health,Imperial College Healthcare NHS Trust,23/08/2012,C&W Path Sla Merit/Sift,Clin & Investigative Sciences,Chelsea And  Westminster Hospital Nhs,2494563,"388,000.00",Optional requirement only
Department of Health,Imperial College Healthcare NHS Trust,31/08/2012,Srvcsrecd-Foundationtrust,Clin & Investigative Sciences,Chelsea And  Westminster Hospital Nhs,2494554,"91,720.69",Optional requirement only
Department of Health,Imperial College Healthcare NHS Trust,21/08/2012,Equip Maint Contracts,Estates Directorate,Chloride Electronics Ltd,2503440,"32,760.00",Optional requirement only
Department of Health,Imperial College Healthcare NHS Trust,10/08/2012,Rates,Estates Directorate,City Of Westminster,2497616,"119,022.00",Optional requirement only
Department of Health,Imperial College Healthcare NHS Trust,16/08/2012,Stents,Specialist Services 2,Cook Uk,2499400,"30,000.00",Optional requirement only
Department of Health,Imperial College Healthcare NHS Trust,01/08/2012,Gas,Estates Directorate,Corona Energy,2485809,"50,218.26",Optional requirement only
Department of Health,Imperial College Healthcare NHS Trust,01/08/2012,Gas,Estates Directorate,Corona Energy,2488441,"86,823.95",Optional requirement only
Department of Health,Imperial College Healthcare NHS Trust,01/08/2012,Gas,Estates Directorate,Corona Energy,2488444,"126,691.32",Optional requirement only
Department of Health,Imperial College Healthcare NHS Trust,01/08/2012,Gas,Estates Directorate,Corona Energy,2488447,"167,008.15",Optional requirement only
Department of Health,Imperial College Healthcare NHS Trust,31/08/2012,Gas,Estates Directorate,Corona Energy,2504151,"72,996.83",Optional requirement only
Department of Health,Imperial College Healthcare NHS Trust,31/08/2012,Gas,Estates Directorate,Corona Energy,2504173,"48,595.68",Optional requirement only
Department of Health,Imperial College Healthcare NHS Trust,01/08/2012,Chx Pharmacy Stock,Stock,Csl Behring Uk Ltd,2485580,"36,480.00",Optional requirement only
Department of Health,Imperial College Healthcare NHS Trust,03/08/2012,Hh Pharmacy Stock,Stock,Csl Behring Uk Ltd,2492394,"72,960.00",Optional requirement only
Department of Health,Imperial College Healthcare NHS Trust,09/08/2012,Chx Pharmacy Stock,Stock,Csl Behring Uk Ltd,2491633,"36,480.00",Optional requirement only
Department of Health,Imperial College Healthcare NHS Trust,23/08/2012,Chx Pharmacy Stock,Stock,Csl Behring Uk Ltd,2504789,"36,480.00",Optional requirement only
Department of Health,Imperial College Healthcare NHS Trust,23/08/2012,Buildings-Additions-Purchased,Capital Summary,Cuffe  Plc,2499189,"128,910.00",Optional requirement only
Department of Health,Imperial College Healthcare NHS Trust,01/08/2012,Computer Software/License,Information & Comms Technology,Dcg Group Limited,2430484,"33,600.00",Optional requirement only
Department of Health,Imperial College Healthcare NHS Trust,23/08/2012,Repairs  And  Maintenance,Surgery And Cancer,De Lage Landen Leasing Limited,2506996,"77,275.87",Optional requirement only
Department of Health,Imperial College Healthcare NHS Trust,09/08/2012,Courier Service - Pathology Contract,Clin & Investigative Sciences,Dhl (Former Excel),2490819,"85,258.68",Optional requirement only
Department of Health,Imperial College Healthcare NHS Trust,23/08/2012,Internal Rechge Clinical Other,Clin & Investigative Sciences,Dhl (Former Excel),2507122,"46,332.00",Optional requirement only
Department of Health,Imperial College Healthcare NHS Trust,21/08/2012,Ext Contract - Patient Travel,Estates Directorate,Dhl (Former Excel),2505398,"38,147.48",Optional requirement only
Department of Health,Imperial College Healthcare NHS Trust,21/08/2012,Ext Contract - Patient Travel,Medicine Cpg,Dhl (Former Excel),2505396,"85,741.78",Optional requirement only
Department of Health,Imperial College Healthcare NHS Trust,21/08/2012,Ext Contract - Patient Travel,Specialist Services 1,Dhl (Former Excel),2505396,"78,646.60",Optional requirement only
Department of Health,Imperial College Healthcare NHS Trust,21/08/2012,Ext Contract - Patient Travel,Specialist Services 2,Dhl (Former Excel),2505396,"417,440.78",Optional requirement only
Department of Health,Imperial College Healthcare NHS Trust,21/08/2012,Ext Contract - Patient Travel,Surgery And Cancer,Dhl (Former Excel),2505396,"44,303.25",Optional requirement only
Department of Health,Imperial College Healthcare NHS Trust,03/08/2012,Electricity,Estates Directorate,Edf Energy,2493218,"72,797.16",Optional requirement only
Department of Health,Imperial College Healthcare NHS Trust,14/08/2012,Electricity,Estates Directorate,Edf Energy,2499518,"75,939.89",Optional requirement only
Department of Health,Imperial College Healthcare NHS Trust,14/08/2012,Electricity,Estates Directorate,Edf Energy,2499537,"32,332.65",Optional requirement only
Department of Health,Imperial College Healthcare NHS Trust,14/08/2012,Electricity,Estates Directorate,Edf Energy,2499611,"225,647.19",Optional requirement only
Department of Health,Imperial College Healthcare NHS Trust,14/08/2012,Electricity,Estates Directorate,Edf Energy,2499617,"201,489.73",Optional requirement only
Department of Health,Imperial College Healthcare NHS Trust,31/08/2012,Drugs Non-Pharmacy Hmcre,Specialist Services 1,Evolution Homecare Services Limited,2508132,"67,005.00",Optional requirement only
Department of Health,Imperial College Healthcare NHS Trust,01/08/2012,Jac - Stock,Stock,Gilead Sciences Ltd,2478277,"61,680.00",Optional requirement only
Department of Health,Imperial College Healthcare NHS Trust,21/08/2012,Jac - Stock,Stock,Gilead Sciences Ltd,2493747,"159,109.63",Optional requirement only
Department of Health,Imperial College Healthcare NHS Trust,21/08/2012,Jac - Stock,Stock,Gilead Sciences Ltd,2493748,"159,109.63",Optional requirement only
Department of Health,Imperial College Healthcare NHS Trust,01/08/2012,Hh Pharmacy Stock,Stock,Gilead Sciences Ltd,2487915,"126,576.00",Optional requirement only
Department of Health,Imperial College Healthcare NHS Trust,31/08/2012,Drugs Other Authorities,Clin & Investigative Sciences,Healthcare At Home Ltd,2506004,"229,970.00",Optional requirement only
Department of Health,Imperial College Healthcare NHS Trust,01/08/2012,Pbr Excluded Drugs,Specialist Services 2,Healthcare At Home Ltd,2490252,"34,114.32",Optional requirement only
Department of Health,Imperial College Healthcare NHS Trust,01/08/2012,Pbr Excluded Drugs,Specialist Services 2,Healthcare At Home Ltd,2490253,"28,257.36",Optional requirement only
Department of Health,Imperial College Healthcare NHS Trust,01/08/2012,Pbr Excluded Drugs,Specialist Services 2,Healthcare At Home Ltd,2490254,"88,456.78",Optional requirement only
Department of Health,Imperial College Healthcare NHS Trust,01/08/2012,Pbr Excluded Drugs,Specialist Services 2,Healthcare At Home Ltd,2490255,"35,171.70",Optional requirement only
Department of Health,Imperial College Healthcare NHS Trust,01/08/2012,Pbr Excluded Drugs,Specialist Services 2,Healthcare At Home Ltd,2490256,"32,144.01",Optional requirement only
Department of Health,Imperial College Healthcare NHS Trust,01/08/2012,Pbr Excluded Drugs,Specialist Services 2,Healthcare At Home Ltd,2490260,"60,523.06",Optional requirement only
Department of Health,Imperial College Healthcare NHS Trust,01/08/2012,Pbr Excluded Drugs,Specialist Services 2,Healthcare At Home Ltd,2490262,"29,709.49",Optional requirement only
Department of Health,Imperial College Healthcare NHS Trust,03/08/2012,Pbr Excluded Drugs,Specialist Services 2,Healthcare At Home Ltd,2490291,"93,112.40",Optional requirement only
Department of Health,Imperial College Healthcare NHS Trust,03/08/2012,Pbr Excluded Drugs,Specialist Services 2,Healthcare At Home Ltd,2490293,"26,061.42",Optional requirement only
Department of Health,Imperial College Healthcare NHS Trust,14/08/2012,Pbr Excluded Drugs,Specialist Services 2,Healthcare At Home Ltd,2490219,"43,195.08",Optional requirement only
Department of Health,Imperial College Healthcare NHS Trust,14/08/2012,Pbr Excluded Drugs,Specialist Services 2,Healthcare At Home Ltd,2490220,"32,373.93",Optional requirement only
Department of Health,Imperial College Healthcare NHS Trust,21/08/2012,Drugs Pbr Excluded,Specialist Services 2,Healthcare At Home Ltd,2499215,"34,346.52",Optional requirement only
Department of Health,Imperial College Healthcare NHS Trust,21/08/2012,Drugs Pbr Excluded,Specialist Services 2,Healthcare At Home Ltd,2499216,"74,489.92",Optional requirement only
Department of Health,Imperial College Healthcare NHS Trust,21/08/2012,Drugs Pbr Excluded,Specialist Services 2,Healthcare At Home Ltd,2499217,"29,875.44",Optional requirement only
Department of Health,Imperial College Healthcare NHS Trust,23/08/2012,Drugs Non-Pharmacy Hmcre,Specialist Services 2,Healthcare At Home Ltd,2499270,"29,875.44",Optional requirement only
Department of Health,Imperial College Healthcare NHS Trust,23/08/2012,Drugs Non-Pharmacy Hmcre,Specialist Services 2,Healthcare At Home Ltd,2499272,"55,867.44",Optional requirement only
Department of Health,Imperial College Healthcare NHS Trust,23/08/2012,Drugs Pbr Excluded,Specialist Services 2,Healthcare At Home Ltd,2499271,"39,548.22",Optional requirement only
Department of Health,Imperial College Healthcare NHS Trust,31/08/2012,Drugs Pbr Excluded,Specialist Services 2,Healthcare At Home Ltd,2499286,"32,589.34",Optional requirement only
Department of Health,Imperial College Healthcare NHS Trust,01/08/2012,Chx Pharmacy Stock,Stock,Healthcare Product Services Ltd,2485404,"80,004.00",Optional requirement only
Department of Health,Imperial College Healthcare NHS Trust,21/08/2012,Chx Pharmacy Stock,Stock,Healthcare Product Services Ltd,2493303,"84,072.00",Optional requirement only
Department of Health,Imperial College Healthcare NHS Trust,23/08/2012,Chx Pharmacy Stock,Stock,Healthcare Product Services Ltd,2499007,"105,768.00",Optional requirement only
Department of Health,Imperial College Healthcare NHS Trust,31/08/2012,Chx Pharmacy Stock,Stock,Healthcare Product Services Ltd,2498970,"108,480.00",Optional requirement only
Department of Health,Imperial College Healthcare NHS Trust,21/08/2012,Laboratory Equip - Other,Clin & Investigative Sciences,Hologic Uk Ltd,2502302,"30,180.00",Optional requirement only
Department of Health,Imperial College Healthcare NHS Trust,09/08/2012,Agency Admin & Clerical,Information & Comms Technology,Hornet It Limited,2479864,"61,680.00",Optional requirement only
Department of Health,Imperial College Healthcare NHS Trust,16/08/2012,Buildings-Additions-Purchased,Capital Summary,Hospedia Ltd,2390191,"44,547.21",Optional requirement only
Department of Health,Imperial College Healthcare NHS Trust,23/08/2012,Video Conferencing,Surgery And Cancer,Impact Marcom  Ltd,2421036,"79,923.60",Optional requirement only
Department of Health,Imperial College Healthcare NHS Trust,31/08/2012,Distinction Awards - Cea Natnl,Clin & Investigative Sciences,Imperial College,2510774,"35,776.03",Optional requirement only
Department of Health,Imperial College Healthcare NHS Trust,31/08/2012,Ic Pay Recharge In: Med,Clin & Investigative Sciences,Imperial College,2510773,"85,102.66",Optional requirement only
Department of Health,Imperial College Healthcare NHS Trust,31/08/2012,Ic Pay Recharge In: Med,Clin & Investigative Sciences,Imperial College,2510774,"34,764.68",Optional requirement only
Department of Health,Imperial College Healthcare NHS Trust,03/08/2012,Ic Library Expenditure,Dir Of Education,Imperial College,2493521,"92,131.50",Optional requirement only
Department of Health,Imperial College Healthcare NHS Trust,14/08/2012,Other Research Exp - Pay,Medical Director - Fr Centres,Imperial College,2499481,"33,337.68",Optional requirement only
Department of Health,Imperial College Healthcare NHS Trust,14/08/2012,Other Research Exp - Pay,Medical Director - Fr Centres,Imperial College,2499487,"31,447.04",Optional requirement only
Department of Health,Imperial College Healthcare NHS Trust,16/08/2012,Other Research Exp - Non-Pay,Medical Director - Fr Centres,Imperial College,2502064,"28,509.19",Optional requirement only
Department of Health,Imperial College Healthcare NHS Trust,16/08/2012,Other Research Exp - Non-Pay,Medical Director - Fr Centres,Imperial College,2502071,"87,545.17",Optional requirement only
Department of Health,Imperial College Healthcare NHS Trust,16/08/2012,Other Research Exp - Pay,Medical Director - Fr Centres,Imperial College,2502060,"31,789.10",Optional requirement only
Department of Health,Imperial College Healthcare NHS Trust,16/08/2012,Other Research Exp - Pay,Medical Director - Fr Centres,Imperial College,2502064,"203,257.45",Optional requirement only
Department of Health,Imperial College Healthcare NHS Trust,16/08/2012,Other Research Exp - Pay,Medical Director - Fr Centres,Imperial College,2502071,"155,801.00",Optional requirement only
Department of Health,Imperial College Healthcare NHS Trust,16/08/2012,Dist Award - Nat Cea,Medicine Cpg,Imperial College,2502000,"48,667.15",Optional requirement only
Department of Health,Imperial College Healthcare NHS Trust,16/08/2012,Ic Pay Recharge In: Med,Medicine Cpg,Imperial College,2501999,"62,324.86",Optional requirement only
Department of Health,Imperial College Healthcare NHS Trust,16/08/2012,Ic Pay Recharge In: Med,Medicine Cpg,Imperial College,2502000,"38,167.12",Optional requirement only
Department of Health,Imperial College Healthcare NHS Trust,23/08/2012,Distinction Awards - Cea Local,Public Health & Primary Care,Imperial College,2507801,"28,581.71",Optional requirement only
Department of Health,Imperial College Healthcare NHS Trust,21/08/2012,Ic Pay Recharge In: Med,Specialist Services 1,Imperial College,2504510,"55,348.29",Optional requirement only
Department of Health,Imperial College Healthcare NHS Trust,07/08/2012,Ic Pay Recharge In: Med,Specialist Services 2,Imperial College,2493922,"27,367.21",Optional requirement only
Department of Health,Imperial College Healthcare NHS Trust,07/08/2012,Ic Pay Recharge In: Med,Specialist Services 2,Imperial College,2493923,"30,127.81",Optional requirement only
Department of Health,Imperial College Healthcare NHS Trust,23/08/2012,Dist Award - Local Cea,Specialist Services 2,Imperial College,2507084,"57,880.28",Optional requirement only
Department of Health,Imperial College Healthcare NHS Trust,23/08/2012,Dist Award - Local Cea,Specialist Services 2,Imperial College,2507086,"39,622.81",Optional requirement only
Department of Health,Imperial College Healthcare NHS Trust,23/08/2012,Dist Award - Local Cea,Specialist Services 2,Imperial College,2507088,"42,368.99",Optional requirement only
Department of Health,Imperial College Healthcare NHS Trust,23/08/2012,Dist Award - Local Cea,Specialist Services 2,Imperial College,2507090,"42,631.90",Optional requirement only
Department of Health,Imperial College Healthcare NHS Trust,23/08/2012,Ic Pay Recharge In: Med,Specialist Services 2,Imperial College,2507084,"72,500.26",Optional requirement only
Department of Health,Imperial College Healthcare NHS Trust,23/08/2012,Ic Pay Recharge In: Med,Specialist Services 2,Imperial College,2507085,"111,773.34",Optional requirement only
Department of Health,Imperial College Healthcare NHS Trust,23/08/2012,Ic Pay Recharge In: Med,Specialist Services 2,Imperial College,2507086,"53,591.81",Optional requirement only
Department of Health,Imperial College Healthcare NHS Trust,23/08/2012,Ic Pay Recharge In: Med,Specialist Services 2,Imperial College,2507087,"93,393.57",Optional requirement only
Department of Health,Imperial College Healthcare NHS Trust,23/08/2012,Ic Pay Recharge In: Med,Specialist Services 2,Imperial College,2507088,"54,287.45",Optional requirement only
Department of Health,Imperial College Healthcare NHS Trust,23/08/2012,Ic Pay Recharge In: Med,Specialist Services 2,Imperial College,2507089,"93,976.66",Optional requirement only
Department of Health,Imperial College Healthcare NHS Trust,23/08/2012,Ic Pay Recharge In: Med,Specialist Services 2,Imperial College,2507090,"66,783.11",Optional requirement only
Department of Health,Imperial College Healthcare NHS Trust,23/08/2012,Ic Pay Recharge In: Med,Specialist Services 2,Imperial College,2507091,"89,649.53",Optional requirement only
Department of Health,Imperial College Healthcare NHS Trust,01/08/2012,Dist Award - Local Cea,Womens And Childrens Direct'E,Imperial College,2490780,"38,887.60",Optional requirement only
Department of Health,Imperial College Healthcare NHS Trust,01/08/2012,Dist Award - Nat Cea,Womens And Childrens Direct'E,Imperial College,2490780,"27,904.04",Optional requirement only
Department of Health,Imperial College Healthcare NHS Trust,01/08/2012,Doctor In Training Ct3+,Womens And Childrens Direct'E,Imperial College,2490780,"25,602.47",Optional requirement only
Department of Health,Imperial College Healthcare NHS Trust,01/08/2012,Ic Pay Recharge In: Med,Womens And Childrens Direct'E,Imperial College,2490700,"91,298.58",Optional requirement only
Department of Health,Imperial College Healthcare NHS Trust,01/08/2012,Ic Pay Recharge In: Med,Womens And Childrens Direct'E,Imperial College,2490718,"91,284.11",Optional requirement only
Department of Health,Imperial College Healthcare NHS Trust,03/08/2012,Dist Award - Local Cea,Womens And Childrens Direct'E,Imperial College,2492437,"38,840.27",Optional requirement only
Department of Health,Imperial College Healthcare NHS Trust,03/08/2012,Dist Award - Nat Cea,Womens And Childrens Direct'E,Imperial College,2492437,"27,904.04",Optional requirement only
Department of Health,Imperial College Healthcare NHS Trust,31/08/2012,Ic Pay Recharge In: Med,Womens And Childrens Direct'E,Imperial College,2509389,"80,000.00",Optional requirement only
Department of Health,Imperial College Healthcare NHS Trust,14/08/2012,Ic Pay Recharge In: Med,Medical Director - Fr Centres,Imperial College Trust,2495410,"34,215.00",Optional requirement only
Department of Health,Imperial College Healthcare NHS Trust,23/08/2012,Consultancy Fees,Specialist Services 1,Inhealth Sterile Services Ltd,2499813,"353,938.57",Optional requirement only
Department of Health,Imperial College Healthcare NHS Trust,03/08/2012,Hh Pharmacy Stock,Stock,Ipsen Limited,2492893,"34,440.00",Optional requirement only
Department of Health,Imperial College Healthcare NHS Trust,31/08/2012,Buildings-Additions-Purchased,Capital Summary,J.C. Watson Refrigeration,2507940,"38,277.60",Optional requirement only
Department of Health,Imperial College Healthcare NHS Trust,21/08/2012,Jac - Stock,Stock,Janssen-Cilag Ltd,2493661,"43,852.32",Optional requirement only
Department of Health,Imperial College Healthcare NHS Trust,21/08/2012,Jac - Stock,Stock,Janssen-Cilag Ltd,2500186,"50,833.44",Optional requirement only
Department of Health,Imperial College Healthcare NHS Trust,21/08/2012,Jac - Stock,Stock,Janssen-Cilag Ltd,2502429,"47,304.00",Optional requirement only
Department of Health,Imperial College Healthcare NHS Trust,14/08/2012,Childcare Voucher (Kids Unltd),Childcare Deductions,Kids Unlimited Group Ltd,2499437,"71,989.26",Optional requirement only
Department of Health,Imperial College Healthcare NHS Trust,07/08/2012,Consultancy Services,Information & Comms Technology,Knowledge Through Information Ltd,2494952,"32,885.04",Optional requirement only
Department of Health,Imperial College Healthcare NHS Trust,01/08/2012,Consultancy Fees,Dir Of Chief Exec,Kudos Healthcare Consulting Limited,2490548,"35,861.47",Optional requirement only
Department of Health,Imperial College Healthcare NHS Trust,31/08/2012,Consultancy Fees,Dir Of Chief Exec,Kudos Healthcare Consulting Limited,2504656,"30,208.80",Optional requirement only
Department of Health,Imperial College Healthcare NHS Trust,09/08/2012,Buildings-Additions-Purchased,Capital Summary,Logan Construction (Se) Ltd,2480661,"51,252.00",Optional requirement only
Department of Health,Imperial College Healthcare NHS Trust,31/08/2012,Rates,Estates Directorate,London Borough Hammersmith & Fulham,2511810,"131,928.00",Optional requirement only
Department of Health,Imperial College Healthcare NHS Trust,31/08/2012,Rates,Estates Directorate,London Borough Hammersmith & Fulham,2511814,"156,784.00",Optional requirement only
Department of Health,Imperial College Healthcare NHS Trust,01/08/2012,Rent,Estates Directorate,London Borough Of Hammersmith/Fulham,2491448,"67,800.00",Optional requirement only
Department of Health,Imperial College Healthcare NHS Trust,03/08/2012,Independent Sector,Public Health & Primary Care,London Central & West Unscheduled Care Collab,2493490,"113,505.27",Optional requirement only
Department of Health,Imperial College Healthcare NHS Trust,03/08/2012,Independent Sector,Public Health & Primary Care,London Central & West Unscheduled Care Collab,2493501,"113,505.27",Optional requirement only
Department of Health,Imperial College Healthcare NHS Trust,03/08/2012,Independent Sector,Public Health & Primary Care,London Central & West Unscheduled Care Collab,2493507,"113,505.27",Optional requirement only
Department of Health,Imperial College Healthcare NHS Trust,03/08/2012,Non-Nhs Pay Recharge In: Med,Public Health & Primary Care,London Central & West Unscheduled Care Collab,2493490,"182,721.44",Optional requirement only
Department of Health,Imperial College Healthcare NHS Trust,03/08/2012,Non-Nhs Pay Recharge In: Med,Public Health & Primary Care,London Central & West Unscheduled Care Collab,2493501,"182,721.44",Optional requirement only
Department of Health,Imperial College Healthcare NHS Trust,03/08/2012,Non-Nhs Pay Recharge In: Med,Public Health & Primary Care,London Central & West Unscheduled Care Collab,2493507,"182,721.44",Optional requirement only
Department of Health,Imperial College Healthcare NHS Trust,03/08/2012,Non-Nhs Pay Rechge In Clerical,Public Health & Primary Care,London Central & West Unscheduled Care Collab,2493490,"47,628.16",Optional requirement only
Department of Health,Imperial College Healthcare NHS Trust,03/08/2012,Non-Nhs Pay Rechge In Clerical,Public Health & Primary Care,London Central & West Unscheduled Care Collab,2493501,"47,628.16",Optional requirement only
Department of Health,Imperial College Healthcare NHS Trust,03/08/2012,Non-Nhs Pay Rechge In Clerical,Public Health & Primary Care,London Central & West Unscheduled Care Collab,2493507,"47,628.16",Optional requirement only
Department of Health,Imperial College Healthcare NHS Trust,31/08/2012,Gp Salaried Doctors,Public Health & Primary Care,London Central & West Unscheduled Care Collab,2510448,"44,114.41",Optional requirement only
Department of Health,Imperial College Healthcare NHS Trust,31/08/2012,Gp Salaried Doctors,Public Health & Primary Care,London Central & West Unscheduled Care Collab,2510450,"44,114.41",Optional requirement only
Department of Health,Imperial College Healthcare NHS Trust,31/08/2012,Gp Sessional Doctors,Public Health & Primary Care,London Central & West Unscheduled Care Collab,2510448,"138,607.03",Optional requirement only
Department of Health,Imperial College Healthcare NHS Trust,31/08/2012,Gp Sessional Doctors,Public Health & Primary Care,London Central & West Unscheduled Care Collab,2510450,"138,607.03",Optional requirement only
Department of Health,Imperial College Healthcare NHS Trust,31/08/2012,Gp Sessional Doctors,Public Health & Primary Care,London Central & West Unscheduled Care Collab,2510692,"35,632.49",Optional requirement only
Department of Health,Imperial College Healthcare NHS Trust,31/08/2012,Independent Sector,Public Health & Primary Care,London Central & West Unscheduled Care Collab,2510448,"113,505.27",Optional requirement only
Department of Health,Imperial College Healthcare NHS Trust,31/08/2012,Independent Sector,Public Health & Primary Care,London Central & West Unscheduled Care Collab,2510450,"113,505.27",Optional requirement only
Department of Health,Imperial College Healthcare NHS Trust,31/08/2012,Pfh Admin Staff,Public Health & Primary Care,London Central & West Unscheduled Care Collab,2510448,"44,494.66",Optional requirement only
Department of Health,Imperial College Healthcare NHS Trust,31/08/2012,Pfh Admin Staff,Public Health & Primary Care,London Central & West Unscheduled Care Collab,2510450,"44,494.66",Optional requirement only
Department of Health,Imperial College Healthcare NHS Trust,01/08/2012,Services Provided,Specialist Services 2,London Perfusion Science,2490927,"30,555.00",Optional requirement only
Department of Health,Imperial College Healthcare NHS Trust,03/08/2012,Phone Instal & Maint,Information & Comms Technology,M&S Medicom,2484524,"108,855.00",Optional requirement only
Department of Health,Imperial College Healthcare NHS Trust,03/08/2012,Drugs Other Authorities,Clin & Investigative Sciences,Medco Health Solutions Ltd,2492843,"43,285.40",Optional requirement only
Department of Health,Imperial College Healthcare NHS Trust,03/08/2012,Drugs Other Authorities,Clin & Investigative Sciences,Medco Health Solutions Ltd,2492844,"30,685.40",Optional requirement only
Department of Health,Imperial College Healthcare NHS Trust,14/08/2012,Hh Pharmacy Stock,Stock,Medco Health Solutions Ltd,2498803,"69,186.08",Optional requirement only
Department of Health,Imperial College Healthcare NHS Trust,14/08/2012,Hh Pharmacy Stock,Stock,Medco Health Solutions Ltd,2498804,"54,125.44",Optional requirement only
Department of Health,Imperial College Healthcare NHS Trust,16/08/2012,Hh Pharmacy Stock,Stock,Medco Health Solutions Ltd,2502317,"55,032.58",Optional requirement only
Department of Health,Imperial College Healthcare NHS Trust,16/08/2012,Hh Pharmacy Stock,Stock,Medco Health Solutions Ltd,2502342,"25,062.52",Optional requirement only
Department of Health,Imperial College Healthcare NHS Trust,23/08/2012,Hh Pharmacy Stock,Stock,Medco Health Solutions Ltd,2507701,"73,270.05",Optional requirement only
Department of Health,Imperial College Healthcare NHS Trust,31/08/2012,Hh Pharmacy Stock,Stock,Medco Health Solutions Ltd,2509783,"56,954.20",Optional requirement only
Department of Health,Imperial College Healthcare NHS Trust,31/08/2012,Other Research Exp - Non-Pay,Medical Director - Fr Centres,Medical Research Council,2499454,"115,000.00",Optional requirement only
Department of Health,Imperial College Healthcare NHS Trust,07/08/2012,Defibrillators,Specialist Services 2,Medtronic Ltd,2492662,"39,000.00",Optional requirement only
Department of Health,Imperial College Healthcare NHS Trust,23/08/2012,Stents,Specialist Services 2,Medtronic Ltd,2495144,"138,000.00",Optional requirement only
Department of Health,Imperial College Healthcare NHS Trust,23/08/2012,Stents,Specialist Services 2,Medtronic Ltd,2504049,"33,600.00",Optional requirement only
Department of Health,Imperial College Healthcare NHS Trust,31/08/2012,Defibrillators,Specialist Services 2,Medtronic Ltd,2504761,"36,000.00",Optional requirement only
Department of Health,Imperial College Healthcare NHS Trust,31/08/2012,Defibrillators,Specialist Services 2,Medtronic Ltd,2506242,"54,000.00",Optional requirement only
Department of Health,Imperial College Healthcare NHS Trust,31/08/2012,Pacemakers,Specialist Services 2,Medtronic Ltd,2504566,"30,240.00",Optional requirement only
Department of Health,Imperial College Healthcare NHS Trust,14/08/2012,Blood Contract,Clin & Investigative Sciences,Nhs Blood And Transplant,2483641,"174,800.69",Optional requirement only
Department of Health,Imperial College Healthcare NHS Trust,14/08/2012,Blood Products,Clin & Investigative Sciences,Nhs Blood And Transplant,2483636,"333,878.58",Optional requirement only
Department of Health,Imperial College Healthcare NHS Trust,14/08/2012,Blood Products,Clin & Investigative Sciences,Nhs Blood And Transplant,2483644,"84,737.56",Optional requirement only
Department of Health,Imperial College Healthcare NHS Trust,09/08/2012,Fp10s,Clin & Investigative Sciences,Nhs Business Services Authority,2483538,"71,912.55",Optional requirement only
Department of Health,Imperial College Healthcare NHS Trust,14/08/2012,Fp10s,Clin & Investigative Sciences,Nhs Business Services Authority,2494520,"90,761.07",Optional requirement only
Department of Health,Imperial College Healthcare NHS Trust,31/08/2012,Insurance Costs,Estates Directorate,Nhs Litigation Authority,2511829,"45,867.00",Optional requirement only
Department of Health,Imperial College Healthcare NHS Trust,31/08/2012,Cnst Contributions,Finance Directorate,Nhs Litigation Authority,2511829,"1,300,765.00",Optional requirement only
Department of Health,Imperial College Healthcare NHS Trust,31/08/2012,Medeq Planned Maint &Ins Contr,Clin & Investigative Sciences,Nhs Supply Chain,2509133,"29,927.88",Optional requirement only
Department of Health,Imperial College Healthcare NHS Trust,01/08/2012,Supplies Issues Recharges,Stock,Nhs Supply Chain,2490489,"98,318.14",Optional requirement only
Department of Health,Imperial College Healthcare NHS Trust,01/08/2012,Supplies Issues Recharges,Stock,Nhs Supply Chain,2490492,"83,783.81",Optional requirement only
Department of Health,Imperial College Healthcare NHS Trust,01/08/2012,Supplies Issues Recharges,Stock,Nhs Supply Chain,2490493,"98,081.06",Optional requirement only
Department of Health,Imperial College Healthcare NHS Trust,09/08/2012,Supplies Issues Recharges,Stock,Nhs Supply Chain,2494483,"86,930.16",Optional requirement only
Department of Health,Imperial College Healthcare NHS Trust,09/08/2012,Supplies Issues Recharges,Stock,Nhs Supply Chain,2494486,"73,575.73",Optional requirement only
Department of Health,Imperial College Healthcare NHS Trust,09/08/2012,Supplies Issues Recharges,Stock,Nhs Supply Chain,2494490,"70,087.71",Optional requirement only
Department of Health,Imperial College Healthcare NHS Trust,16/08/2012,Supplies Issues Recharges,Stock,Nhs Supply Chain,2501983,"86,157.87",Optional requirement only
Department of Health,Imperial College Healthcare NHS Trust,16/08/2012,Supplies Issues Recharges,Stock,Nhs Supply Chain,2501985,"67,428.01",Optional requirement only
Department of Health,Imperial College Healthcare NHS Trust,16/08/2012,Supplies Issues Recharges,Stock,Nhs Supply Chain,2501986,"72,537.15",Optional requirement only
Department of Health,Imperial College Healthcare NHS Trust,23/08/2012,Supplies Issues Recharges,Stock,Nhs Supply Chain,2508066,"78,211.65",Optional requirement only
Department of Health,Imperial College Healthcare NHS Trust,23/08/2012,Supplies Issues Recharges,Stock,Nhs Supply Chain,2508071,"81,923.33",Optional requirement only
Department of Health,Imperial College Healthcare NHS Trust,23/08/2012,Supplies Issues Recharges,Stock,Nhs Supply Chain,2508075,"66,667.22",Optional requirement only
Department of Health,Imperial College Healthcare NHS Trust,31/08/2012,Supplies Issues Recharges,Stock,Nhs Supply Chain,2509077,"92,707.07",Optional requirement only
Department of Health,Imperial College Healthcare NHS Trust,31/08/2012,Supplies Issues Recharges,Stock,Nhs Supply Chain,2509078,"101,405.57",Optional requirement only
Department of Health,Imperial College Healthcare NHS Trust,31/08/2012,Supplies Issues Recharges,Stock,Nhs Supply Chain,2509079,"73,594.23",Optional requirement only
Department of Health,Imperial College Healthcare NHS Trust,09/08/2012,Medeq Planned Maint &Ins Contr,Surgery And Cancer,Nhs Supply Chain,2497221,"60,720.00",Optional requirement only
Department of Health,Imperial College Healthcare NHS Trust,01/08/2012,Consultancy Fees,Medicine Cpg,North East Strategic Health Authority,2479325,"135,425.00",Optional requirement only
Department of Health,Imperial College Healthcare NHS Trust,23/08/2012,Other Miscellaneous,Medicine Cpg,North East Strategic Health Authority,2508247,"30,256.00",Optional requirement only
Department of Health,Imperial College Healthcare NHS Trust,16/08/2012,Miscellaneous Items,Specialist Services 2,North West London Hospitals Nhs Trust,2494511,"231,436.87",Optional requirement only
Department of Health,Imperial College Healthcare NHS Trust,16/08/2012,Miscellaneous Items,Specialist Services 2,North West London Hospitals Nhs Trust,2494513,"139,534.43",Optional requirement only
Department of Health,Imperial College Healthcare NHS Trust,21/08/2012,Jac - Stock,Stock,Novartis Pharmaceutical (Uk) Ltd,2500256,"52,233.55",Optional requirement only
Department of Health,Imperial College Healthcare NHS Trust,31/08/2012,Jac - Stock,Stock,Novartis Pharmaceutical (Uk) Ltd,2505600,"52,990.56",Optional requirement only
Department of Health,Imperial College Healthcare NHS Trust,09/08/2012,Hh Pharmacy Stock,Stock,Novartis Pharmaceutical (Uk) Ltd,2489321,"31,402.82",Optional requirement only
Department of Health,Imperial College Healthcare NHS Trust,14/08/2012,Management Services,Marketing Rph,Ove Arup & Partners International Ltd,2498693,"31,038.05",Optional requirement only
Department of Health,Imperial College Healthcare NHS Trust,03/08/2012,Interpreting Services,Director Of Operations,Pearl Linguistics Ltd,2476079,"34,975.70",Optional requirement only
Department of Health,Imperial College Healthcare NHS Trust,07/08/2012,Equipment Maintenance,Clin & Investigative Sciences,Pharmagraph-Aquisition Systems,2487655,"32,908.80",Optional requirement only
Department of Health,Imperial College Healthcare NHS Trust,07/08/2012,Agency Ahp Band 5+,Clin & Investigative Sciences,Reed,2491277,"34,355.28",Optional requirement only
Department of Health,Imperial College Healthcare NHS Trust,07/08/2012,Agency Ptb Band 5+,Clin & Investigative Sciences,Reed,2491131,"57,516.06",Optional requirement only
Department of Health,Imperial College Healthcare NHS Trust,07/08/2012,Agency Ptb Band 5+,Clin & Investigative Sciences,Reed,2491257,"37,126.00",Optional requirement only
Department of Health,Imperial College Healthcare NHS Trust,07/08/2012,Agency Ptb Band 5+,Clin & Investigative Sciences,Reed,2491261,"52,871.26",Optional requirement only
Department of Health,Imperial College Healthcare NHS Trust,07/08/2012,Agency Ptb Band 5+,Clin & Investigative Sciences,Reed,2491277,"70,010.79",Optional requirement only
Department of Health,Imperial College Healthcare NHS Trust,10/08/2012,Agency Ptb Band 5+,Clin & Investigative Sciences,Reed,2497676,"43,404.36",Optional requirement only
Department of Health,Imperial College Healthcare NHS Trust,10/08/2012,Agency Scient & Prof Qualified,Clin & Investigative Sciences,Reed,2492594,"39,892.80",Optional requirement only
Department of Health,Imperial College Healthcare NHS Trust,21/08/2012,Agency Ptb Band 5+,Clin & Investigative Sciences,Reed,2494717,"45,645.75",Optional requirement only
Department of Health,Imperial College Healthcare NHS Trust,21/08/2012,Agency Ptb Band 5+,Clin & Investigative Sciences,Reed,2494912,"46,601.88",Optional requirement only
Department of Health,Imperial College Healthcare NHS Trust,01/08/2012,Midwifry&Nursing B5 Bank (O/S),Medicine Cpg,Reed,2490509,"33,551.40",Optional requirement only
Department of Health,Imperial College Healthcare NHS Trust,06/08/2012,Midwifry&Nursing B5 Bank (O/S),Medicine Cpg,Reed,2493488,"50,852.55",Optional requirement only
Department of Health,Imperial College Healthcare NHS Trust,01/08/2012,Chx Pharmacy Stock,Stock,Roche Products Ltd,2485286,"51,332.40",Optional requirement only
Department of Health,Imperial College Healthcare NHS Trust,09/08/2012,Chx Pharmacy Stock,Stock,Roche Products Ltd,2491783,"51,332.40",Optional requirement only
Department of Health,Imperial College Healthcare NHS Trust,16/08/2012,Hh Pharmacy Stock,Stock,Roche Products Ltd,2494451,"94,297.82",Optional requirement only
Department of Health,Imperial College Healthcare NHS Trust,31/08/2012,Chx Pharmacy Stock,Stock,Roche Products Ltd,2505062,"51,332.40",Optional requirement only
Department of Health,Imperial College Healthcare NHS Trust,07/08/2012,Other Miscellaneous,Medicine Cpg,Solutions For Public Health Nhs,2495682,"45,125.00",Optional requirement only
Department of Health,Imperial College Healthcare NHS Trust,21/08/2012,Management Services,Marketing Rph,South Central Strategic Health Authority,2506074,"27,253.74",Optional requirement only
Department of Health,Imperial College Healthcare NHS Trust,16/08/2012,Consultancy Fees,Medicine Cpg,South Central Strategic Health Authority,2492750,"65,627.00",Optional requirement only
Department of Health,Imperial College Healthcare NHS Trust,16/08/2012,Recharge In - Pay - Nhs,Finance Directorate,South West Strategic Health Authority,2483531,"35,239.71",Optional requirement only
Department of Health,Imperial College Healthcare NHS Trust,14/08/2012,Defibrillators,Specialist Services 2,St Jude Medical U K Limited,2498974,"42,000.00",Optional requirement only
Department of Health,Imperial College Healthcare NHS Trust,14/08/2012,Medical Equipment,Specialist Services 2,St Jude Medical U K Limited,2498969,"42,000.00",Optional requirement only
Department of Health,Imperial College Healthcare NHS Trust,16/08/2012,Hardware Budget,Clin & Investigative Sciences,Sunquest Information Systems (Europe) Ltd,2454126,"55,740.00",Optional requirement only
Department of Health,Imperial College Healthcare NHS Trust,16/08/2012,Hardware Budget,Clin & Investigative Sciences,Sunquest Information Systems (Europe) Ltd,2480790,"70,824.48",Optional requirement only
Department of Health,Imperial College Healthcare NHS Trust,16/08/2012,Hardware Budget,Clin & Investigative Sciences,Sunquest Information Systems (Europe) Ltd,2480903,"106,236.72",Optional requirement only
Department of Health,Imperial College Healthcare NHS Trust,21/08/2012,Cleaning Materials,Estates Directorate,Synergy Health  Uk Ltd,2504667,"40,539.40",Optional requirement only
Department of Health,Imperial College Healthcare NHS Trust,21/08/2012,Cleaning Materials,Estates Directorate,Synergy Health  Uk Ltd,2504671,"41,183.98",Optional requirement only
Department of Health,Imperial College Healthcare NHS Trust,21/08/2012,Ext Contr Laundry,Estates Directorate,Synergy Health  Uk Ltd,2504667,"103,064.68",Optional requirement only
Department of Health,Imperial College Healthcare NHS Trust,21/08/2012,Ext Contr Laundry,Estates Directorate,Synergy Health  Uk Ltd,2504671,"119,067.01",Optional requirement only
Department of Health,Imperial College Healthcare NHS Trust,07/08/2012,Rent,Estates Directorate,Thames Valley Charitable Housing,2495684,"38,557.26",Optional requirement only
Department of Health,Imperial College Healthcare NHS Trust,31/08/2012,Thames Valley Housing Assoc,Housing Deductions,Thames Valley Charitable Housing,2510708,"96,252.75",Optional requirement only
Department of Health,Imperial College Healthcare NHS Trust,16/08/2012,Ext Contr Laundry,Estates Directorate,The Sunlight Service Group Ltd,2477215,"49,949.05",Optional requirement only
Department of Health,Imperial College Healthcare NHS Trust,23/08/2012,Ext Contr Laundry,Estates Directorate,The Sunlight Service Group Ltd,2492676,"31,749.12",Optional requirement only
Department of Health,Imperial College Healthcare NHS Trust,23/08/2012,It Eqpt-Additions,Capital Summary,Ultima Business Solutions Ltd,2499892,"69,335.18",Optional requirement only
Department of Health,Imperial College Healthcare NHS Trust,31/08/2012,Consultancy Fees,Medicine Cpg,Uni Hospital Southampton Nhs Ft,2509408,"214,655.00",Optional requirement only
Department of Health,Imperial College Healthcare NHS Trust,09/08/2012,Hh Pharmacy Stock,Stock,Unidrug Distribution Group Ltd,2494582,"71,689.80",Optional requirement only
Department of Health,Imperial College Healthcare NHS Trust,01/08/2012,Non-Nhs Pay Recharge In: Med,Specialist Services 1,University Of Oxford,2483529,"68,526.00",Optional requirement only
Department of Health,Imperial College Healthcare NHS Trust,03/08/2012,Dist Award - Local Cea,Specialist Services 1,University Of Oxford,2483581,"41,489.22",Optional requirement only
Department of Health,Imperial College Healthcare NHS Trust,03/08/2012,Dist Award - Nat Cea,Specialist Services 1,University Of Oxford,2483582,"26,933.44",Optional requirement only
Department of Health,Imperial College Healthcare NHS Trust,03/08/2012,Non-Nhs Pay Recharge In: Med,Specialist Services 1,University Of Oxford,2483581,"43,279.16",Optional requirement only
Department of Health,Imperial College Healthcare NHS Trust,03/08/2012,Non-Nhs Pay Recharge In: Med,Specialist Services 1,University Of Oxford,2483582,"55,223.92",Optional requirement only
Department of Health,Imperial College Healthcare NHS Trust,03/08/2012,Non-Nhs Pay Recharge In: Med,Specialist Services 1,University Of Oxford,2484606,"56,611.48",Optional requirement only
Department of Health,Imperial College Healthcare NHS Trust,31/08/2012,Phone Rental And Calls,Information & Comms Technology,Virgin Media Business  Ltd,2497691,"33,338.72",Optional requirement only
Department of Health,Imperial College Healthcare NHS Trust,31/08/2012,Services Received - Nhsts,Specialist Services 1,West London Mental Health Nhs Trust,2424122,"46,000.00",Optional requirement only
Department of Health,Imperial College Healthcare NHS Trust,31/08/2012,Services Received - Nhsts,Specialist Services 1,West London Mental Health Nhs Trust,2499794,"33,445.84",Optional requirement only
Department of Health,Imperial College Healthcare NHS Trust,31/08/2012,Services Received - Nhsts,Specialist Services 1,West London Mental Health Nhs Trust,2499800,"46,000.00",Optional requirement only
Department of Health,Imperial College Healthcare NHS Trust,31/08/2012,Nhs Pay Recharge In: Med,Specialist Services 2,West London Mental Health Nhs Trust,2348910,"41,094.85",Optional requirement only
Department of Health,Imperial College Healthcare NHS Trust,09/08/2012,Miscellaneous Expenditure,Specialist Services 2,West Middlesex University Hospital Nhs Trust,2418787,"110,560.00",Optional requirement only
Department of Health,Imperial College Healthcare NHS Trust,09/08/2012,Miscellaneous Expenditure,Specialist Services 2,West Middlesex University Hospital Nhs Trust,2418788,"85,212.00",Optional requirement only
Department of Health,Imperial College Healthcare NHS Trust,09/08/2012,Miscellaneous Expenditure,Specialist Services 2,West Middlesex University Hospital Nhs Trust,2418790,"57,371.00",Optional requirement only
Department of Health,Imperial College Healthcare NHS Trust,09/08/2012,Miscellaneous Expenditure,Specialist Services 2,West Middlesex University Hospital Nhs Trust,2418820,"38,932.00",Optional requirement only
Department of Health,Imperial College Healthcare NHS Trust,09/08/2012,Miscellaneous Expenditure,Specialist Services 2,West Middlesex University Hospital Nhs Trust,2425899,"44,278.00",Optional requirement only
Department of Health,Imperial College Healthcare NHS Trust,09/08/2012,Miscellaneous Expenditure,Specialist Services 2,West Middlesex University Hospital Nhs Trust,2425903,"55,369.00",Optional requirement only
Department of Health,Imperial College Healthcare NHS Trust,03/08/2012,Consultancy Fees,Medicine Cpg,Westminster Pct Com,2479210,"130,463.00",Optional requirement only
,,,,,,Sum:,"21,183,678.44",
